bitfinex/quotes_SOLUSD_20241010
["timestamp","ask_amount","ask_price","bid_price","bid_amount"]
[1728582233073,3.611,138.43,138.42,58.9904151]
[1728582233376,3.611,138.43,138.42,57.546164]
[1728582236072,3.611,138.43,138.42,50.321864]
[1728582236276,3.611,138.43,138.42,51.76630885]
[1728582236779,3.611,138.43,138.42,31.76630885]
[1728582236955,3.611,138.43,138.42,51.76630885]
[1728582237477,3.611,138.43,138.42,58.99060885]
[1728582238456,3.611,138.43,138.42,57.546164]
[1728582240077,3.611,138.43,138.42,58.99060796]
[1728582240463,3.611,138.43,138.42,57.546164]
[1728582242364,3.611,138.43,138.42,50.321864]
[1728582242691,3.611,138.43,138.42,43.902374]
[1728582242868,3.611,138.43,138.42,0.12549]
[1728582243567,3.611,138.43,138.42,25.34692481]
[1728582243781,3.611,138.43,138.42,45.34692481]
[1728582244077,3.611,138.43,138.42,45.47241481]
[1728582244465,3.611,138.43,138.42,0.25098]
[1728582244666,3.611,138.43,138.42,0.12549]
[1728582244875,10.8349,138.43,138.38,13.2898]
[1728582245065,10.8349,138.43,138.38,7.2262]
[1728582245784,7.2246,138.42,138.37,25.2933]
[1728582245978,7.2249,138.41,138.37,18.0664]
[1728582247491,7.2249,138.41,138.37,20.0]
[1728582249612,7.2249,138.41,138.38,0.25098]
[1728582249986,7.2249,138.41,138.38,1.69601479]
[1728582250403,7.2254,138.4,138.37,0.25098]
[1728582250613,3.611,138.43,138.36,7.2273]
[1728582250614,7.2261,138.39,138.36,20.25098]
[1728582251187,7.2261,138.39,138.36,0.25098]
[1728582254302,16.6529,138.41,138.36,0.25098]
[1728582254487,7.2266,138.38,138.36,0.25098]
[1728582255102,7.2266,138.38,138.35,0.25098]
[1728582255304,7.2255,138.4,138.36,7.2274]
[1728582255510,7.2255,138.4,138.37,1.44511946]
[1728582255691,7.2255,138.4,138.35,7.47888]
[1728582257295,16.6529,138.41,138.35,7.47888]
[1728582257497,7.2262,138.39,138.35,7.47888]
[1728582258214,7.2265,138.38,138.35,24.027864]
[1728582259295,7.2265,138.38,138.36,1.44523411]
[1728582260191,7.2261,138.39,138.35,31.255864]
[1728582260402,7.2261,138.39,138.36,1.44522275]
[1728582260927,7.2255,138.4,138.37,0.25098]
[1728582261224,7.2259,138.39,138.37,0.25098]
[1728582261598,7.2259,138.39,138.36,0.25098]
[1728582263423,7.2264,138.38,138.36,0.25098]
[1728582270626,7.2264,138.38,138.36,1.69622576]
[1728582270825,1.8064488,138.4,138.36,1.69622576]
[1728582271012,7.2262,138.39,138.36,0.25098]
[1728582271499,7.2264,138.38,138.36,0.25098]
[1728582279009,18.0651,138.39,138.35,5.39002771]
[1728582279333,19.87199215,138.39,138.32,20.0]
[1728582279542,19.87199215,138.39,138.31,18.0742]
[1728582280215,7.2286,138.34,138.31,18.0742]
[1728582280533,7.2282,138.35,138.31,18.0742]
[1728582280833,7.2282,138.35,138.32,20.0]
[1728582281132,7.2282,138.35,138.33,0.25098]
[1728582284134,7.2285,138.34,138.33,0.25098]
[1728582287522,7.2271,138.37,138.33,26.99786747]
[1728582289637,7.2266,138.38,138.35,0.25098]
[1728582289839,7.2266,138.38,138.35,1.69626537]
[1728582290340,7.226,138.39,138.35,26.99406537]
[1728582292140,7.2264,138.38,138.35,26.99406537]
[1728582293624,7.2264,138.38,138.35,19.76626537]
[1728582293930,18.45943858,138.41,138.35,19.76626537]
[1728582294132,7.2261,138.39,138.35,26.99426537]
[1728582295850,7.2261,138.39,138.35,19.76626537]
[1728582296054,7.2261,138.39,138.37,0.25098]
[1728582296250,1.80650844,138.42,138.37,8.92263829]
[1728582296554,7.2255,138.4,138.37,1.69613829]
[1728582297627,7.2255,138.4,138.37,0.25098]
[1728582298054,7.2255,138.4,138.37,1.69608687]
[1728582298354,7.2255,138.4,138.37,0.25098]
[1728582298540,7.2255,138.4,138.37,1.69608628]
[1728582299455,7.2259,138.39,138.37,0.25098]
[1728582302333,7.2259,138.39,138.37,1.69611239]
[1728582302655,7.2259,138.39,138.37,0.25098]
[1728582302852,7.2255,138.4,138.37,1.6960667]
[1728582304467,7.2255,138.4,138.37,0.25098]
[1728582305454,7.2255,138.4,138.37,1.6960456]
[1728582306157,3.611,138.43,138.37,21.6960456]
[1728582306364,7.2245,138.42,138.39,7.2257]
[1728582306666,10.8349,138.43,138.4,1.69578507]
[1728582307545,10.8349,138.43,138.4,8.92108507]
[1728582308367,3.611,138.43,138.42,0.25098]
[1728582308562,3.611,138.43,138.42,1.69554793]
[1728582309078,3.611,138.43,138.42,51.252164]
[1728582309281,3.611,138.43,138.42,57.572264]
[1728582309450,3.611,138.43,138.42,73.853064]
[1728582310682,3.611,138.43,138.42,143.853064]
[1728582312672,3.611,138.43,138.42,73.853064]
[1728582317965,3.611,138.43,138.41,7.2245]
[1728582318270,3.611,138.43,138.42,8.66881327]
[1728582318470,3.611,138.43,138.42,7.2243]
[1728582318988,3.611,138.43,138.41,7.2247]
[1728582319393,3.611,138.43,138.42,20.12549]
[1728582320265,3.611,138.43,138.39,7.2258]
[1728582320266,10.8352,138.43,138.39,7.2258]
[1728582320500,3.611,138.43,138.4,1.44465822]
[1728582320671,3.611,138.43,138.41,7.2248]
[1728582320873,3.611,138.43,138.42,1.44456094]
[1728582321071,3.611,138.43,138.42,7.2243]
[1728582321395,3.611,138.43,138.42,8.66871622]
[1728582321573,3.611,138.43,138.42,52.69658022]
[1728582322401,3.611,138.43,138.42,51.252164]
[1728582322569,3.611,138.43,138.42,44.027864]
[1728582322769,3.611,138.43,138.42,24.027864]
[1728582325199,3.611,138.43,138.42,0.25098]
[1728582325384,10.8348,138.43,138.42,0.12549]
[1728582325582,10.8348,138.43,138.39,27.2257]
[1728582325889,7.2245,138.42,138.38,25.2914]
[1728582327305,7.2245,138.42,138.39,44.027864]
[1728582327493,10.8349,138.43,138.4,1.44475831]
[1728582327830,10.8349,138.43,138.41,0.25098]
[1728582328303,10.8349,138.43,138.4,0.25098]
[1728582330402,7.2244,138.42,138.4,0.25098]
[1728582330609,19.0306,138.43,138.37,20.0]
[1728582330910,7.227,138.37,138.33,1.25515493]
[1728582331077,19.8676047,138.42,138.34,7.2285]
[1728582331078,7.2265,138.38,138.34,7.2285]
[1728582331273,7.226,138.39,138.35,7.2279]
[1728582332112,19.8676047,138.42,138.35,20.0]
[1728582332308,7.227,138.37,138.34,18.0709]
[1728582333712,7.2278,138.36,138.33,20.0]
[1728582333915,7.2293,138.33,138.28,18.078]
[1728582334091,7.2298,138.32,138.28,25.3092]
[1728582334696,1.80695282,138.35,138.29,1.44587257]
[1728582334923,1.80695282,138.35,138.29,8.67687257]
[1728582334924,7.2292,138.33,138.29,8.67687257]
[1728582335815,7.2286,138.34,138.3,7.2305]
[1728582336023,7.2281,138.35,138.31,8.67553875]
[1728582336402,7.2281,138.35,138.32,0.25098]
[1728582338596,16.1104,138.38,138.32,42.101164]
[1728582338799,16.1104,138.38,138.34,0.25098]
[1728582338996,7.2275,138.36,138.34,0.25098]
[1728582339421,7.2275,138.36,138.32,41.850184]
[1728582339422,7.2275,138.36,138.33,0.25098]
[1728582345018,7.2275,138.36,138.33,1.69647983]
[1728582345219,7.2275,138.36,138.33,0.25098]
[1728582346935,7.2275,138.36,138.33,1.69648083]
[1728582347135,7.2275,138.36,138.33,0.25098]
[1728582348246,7.2275,138.36,138.32,49.079584]
[1728582348247,1.80687554,138.36,138.34,16.11806548]
[1728582348448,1.80687554,138.36,138.3,10.74729428]
[1728582348629,7.23,138.32,138.28,16.18617076]
[1728582349245,7.2302,138.31,138.28,7.2313]
[1728582349544,7.2302,138.31,138.29,44.027864]
[1728582351353,7.2298,138.32,138.29,44.027864]
[1728582355463,19.87587554,138.36,138.29,44.027864]
[1728582355766,7.2302,138.31,138.29,44.027864]
[1728582356560,7.2297,138.32,138.3,1.4459343]
[1728582356963,7.2297,138.32,138.29,44.027864]
[1728582357169,7.2305,138.31,138.29,0.25098]
[1728582357373,7.2305,138.31,138.28,45.47390588]
[1728582357560,7.2305,138.31,138.28,21.57153188]
[1728582358264,7.2305,138.31,138.27,7.232]
[1728582358564,7.2305,138.31,138.28,0.12549]
[1728582358965,7.2305,138.31,138.28,24.027864]
[1728582359171,17.59825235,138.33,138.28,24.027864]
[1728582359460,7.2306,138.3,138.28,24.027864]
[1728582361680,17.59825235,138.33,138.29,1.4460748]
[1728582361885,7.2301,138.31,138.28,31.259364]
[1728582362676,7.2301,138.31,138.28,32.61813273]
[1728582362884,7.2309,138.3,138.28,8.84124873]
[1728582363088,7.2309,138.3,138.28,0.25098]
[1728582363261,7.2309,138.3,138.28,8.84124873]
[1728582363455,7.2309,138.3,138.28,0.25098]
[1728582363785,7.2322,138.27,138.25,20.0]
[1728582363959,7.2322,138.27,138.23,26.68032908]
[1728582364151,7.2322,138.27,138.23,33.91442908]
[1728582364356,7.2322,138.27,138.24,8.59592908]
[1728582364564,7.2322,138.27,138.23,33.91442908]
[1728582364777,7.2328,138.26,138.23,26.68032908]
[1728582364976,7.2323,138.27,138.23,33.91432908]
[1728582365574,7.2323,138.27,138.23,25.3184]
[1728582365774,7.2323,138.27,138.23,33.91685774]
[1728582365982,7.2323,138.27,138.24,24.027864]
[1728582366384,7.2323,138.27,138.24,31.261464]
[1728582366689,7.2323,138.27,138.24,0.25098]
[1728582366868,7.2327,138.26,138.24,0.25098]
[1728582367068,1.80813009,138.3,138.24,0.25098]
[1728582367268,7.2324,138.27,138.24,0.25098]
[1728582368295,1.80813009,138.3,138.24,24.027864]
[1728582368592,1.80813009,138.3,138.26,0.25098]
[1728582368593,7.2314,138.29,138.26,0.25098]
[1728582368768,7.2314,138.29,138.26,1.69729786]
[1728582370890,33.8646,138.33,138.26,1.69729786]
[1728582371071,7.2317,138.28,138.26,0.25098]
[1728582372295,7.2317,138.28,138.22,22.3302]
[1728582372296,7.2325,138.27,138.23,25.3199]
[1728582372494,7.2328,138.26,138.24,0.25098]
[1728582374907,21.80812596,138.3,138.24,0.25098]
[1728582375212,7.2324,138.27,138.24,0.25098]
[1728582377713,7.2306,138.31,138.28,0.25098]
[1728582377925,1.80806539,138.32,138.29,0.12549]
[1728582377926,7.2298,138.32,138.29,0.12549]
[1728582378099,7.2298,138.32,138.29,1.57152069]
[1728582378417,7.2311,138.29,138.27,0.12549]
[1728582378607,7.2317,138.28,138.26,0.12549]
[1728582378919,7.2322,138.27,138.23,7.2339]
[1728582379122,7.233,138.26,138.23,0.12549]
[1728582379821,7.2333,138.25,138.21,41.3559]
[1728582380506,7.2328,138.26,138.22,7.2347]
[1728582381120,7.2328,138.26,138.23,0.25098]
[1728582381412,1.80813432,138.29,138.21,20.0]
[1728582381413,7.2342,138.24,138.21,20.0]
[1728582381722,7.2343,138.23,138.21,20.0]
[1728582382014,7.2343,138.23,138.2,20.0]
[1728582382516,7.2343,138.23,138.2,21.44693527]
[1728582382697,7.234,138.24,138.2,21.44693527]
[1728582382892,7.2344,138.23,138.19,7.2359]
[1728582383314,7.2344,138.23,138.2,1.44693235]
[1728582383503,7.2351,138.22,138.2,1.44693235]
[1728582383811,7.2344,138.23,138.2,1.44693235]
[1728582384020,1.80867602,138.25,138.21,0.25098]
[1728582384233,7.2339,138.24,138.21,0.25098]
[1728582385239,7.2339,138.24,138.21,1.6978319]
[1728582385625,7.2339,138.24,138.21,0.25098]
[1728582387742,7.2343,138.23,138.2,0.12549]
[1728582387961,1.80851395,138.23,138.19,24.027864]
[1728582388129,7.2349,138.22,138.19,24.027864]
[1728582388329,7.2349,138.22,138.19,31.264164]
[1728582389022,1.80867137,138.25,138.19,31.264164]
[1728582389214,7.2344,138.23,138.2,1.44693097]
[1728582390539,7.2344,138.23,138.19,31.264164]
[1728582392341,7.2344,138.23,138.2,1.44693175]
[1728582392862,7.2344,138.23,138.19,31.264164]
[1728582393761,7.2351,138.22,138.19,24.027864]
[1728582394563,7.2354,138.21,138.19,0.25098]
[1728582394944,7.2363,138.2,138.17,1.25660582]
[1728582395137,1.80906155,138.22,138.16,27.2376]
[1728582395343,7.2361,138.2,138.16,27.2377]
[1728582395642,1.80906155,138.22,138.17,8.68463518]
[1728582395643,7.2355,138.21,138.17,8.68463518]
[1728582395838,7.2355,138.21,138.17,25.3309]
[1728582396048,7.2368,138.19,138.16,20.0]
[1728582396461,7.2361,138.2,138.17,1.6982791]
[1728582396758,7.2361,138.2,138.17,0.25098]
[1728582397866,7.2361,138.2,138.17,1.69822916]
[1728582398635,1.8090564,138.22,138.17,24.027864]
[1728582398940,7.2352,138.22,138.18,7.2369]
[1728582399145,7.2353,138.21,138.18,7.2369]
[1728582399562,7.2353,138.21,138.18,8.68407159]
[1728582400163,7.2353,138.21,138.18,1.44717159]
[1728582400372,7.2353,138.21,138.17,31.265064]
[1728582400572,7.2353,138.21,138.18,1.44715502]
[1728582400953,20.0,138.26,138.19,0.25098]
[1728582401270,7.2344,138.23,138.19,31.263764]
[1728582401444,7.2344,138.23,138.19,30.763764]
[1728582401846,9.04369241,138.22,138.18,25.3289]
[1728582402072,7.235,138.22,138.18,25.3289]
[1728582403148,7.235,138.22,138.19,1.44703599]
[1728582404444,7.235,138.22,138.18,25.45439]
[1728582404643,7.235,138.22,138.19,0.25098]
[1728582405154,7.235,138.22,138.19,1.69801886]
[1728582405757,1.80888385,138.25,138.19,1.69801886]
[1728582406071,7.2338,138.24,138.2,25.3252]
[1728582406576,7.2338,138.24,138.21,1.44695114]
[1728582407175,7.2346,138.23,138.2,18.0897]
[1728582408578,1.80867819,138.27,138.22,0.12549]
[1728582408778,7.2331,138.26,138.22,7.35999]
[1728582408977,7.232,138.28,138.24,0.12549]
[1728582409178,7.232,138.28,138.24,7.35909]
[1728582409368,7.232,138.28,138.24,25.44349]
[1728582409977,7.232,138.28,138.25,1.44645341]
[1728582410562,7.232,138.28,138.24,25.44349]
[1728582410765,7.2322,138.27,138.24,18.20989]
[1728582411776,7.2333,138.25,138.23,0.25098]
[1728582413178,7.2333,138.25,138.21,7.2352]
[1728582413369,7.2338,138.24,138.21,44.027864]
[1728582414491,1.80847892,138.27,138.21,20.0]
[1728582414790,7.2348,138.22,138.17,24.3556]
[1728582415096,7.2348,138.22,138.19,7.2364]
[1728582415263,7.2348,138.22,138.17,24.3556]
[1728582415467,7.2348,138.22,138.18,7.2367]
[1728582416397,7.2354,138.21,138.18,7.2367]
[1728582416782,7.2361,138.2,138.17,18.0926]
[1728582417090,7.2367,138.19,138.14,1.25683902]
[1728582417391,7.2367,138.19,138.15,7.2381]
[1728582417578,1.80906117,138.22,138.16,7.2379]
[1728582417899,7.236,138.2,138.16,7.2379]
[1728582418072,1.80906117,138.22,138.17,7.2374]
[1728582418268,1.80906117,138.22,138.18,0.12549]
[1728582418269,7.2351,138.22,138.18,0.12549]
[1728582418478,7.2351,138.22,138.18,31.264564]
[1728582418688,7.2354,138.21,138.18,1.69804984]
[1728582418992,7.2362,138.2,138.17,18.0936]
[1728582419290,7.2362,138.2,138.17,19.54084199]
[1728582420378,7.2362,138.2,138.18,5.40388591]
[1728582420690,7.2362,138.2,138.18,5.40388519]
[1728582422879,7.2362,138.2,138.17,25.3309]
[1728582423093,7.2362,138.2,138.18,5.40435984]
[1728582423385,7.2364,138.19,138.18,5.40435984]
[1728582423598,7.2364,138.19,138.17,5.40435984]
[1728582423770,7.2364,138.19,138.16,43.902374]
[1728582423969,7.2369,138.18,138.17,5.4050409]
[1728582424174,7.2369,138.18,138.15,5.4050409]
[1728582424392,7.2369,138.18,138.16,5.4050409]
[1728582424568,7.2369,138.18,138.17,5.4050409]
[1728582425513,1.80929986,138.2,138.16,5.4050409]
[1728582425699,7.2369,138.18,138.14,25.46079]
[1728582426004,7.2369,138.18,138.15,5.40773798]
[1728582426181,7.2369,138.18,138.16,5.40773798]
[1728582426382,7.2369,138.18,138.15,1.44750308]
[1728582426698,7.2365,138.19,138.16,5.4072937]
[1728582426888,7.2365,138.19,138.15,12.64538869]
[1728582427095,7.2372,138.18,138.15,5.40728869]
[1728582427705,7.2378,138.17,138.15,5.40728869]
[1728582429417,7.2379,138.16,138.15,5.40728869]
[1728582430398,1.80929986,138.2,138.12,34.65631539]
[1728582430603,7.2376,138.17,138.13,28.93813405]
[1728582431218,7.237,138.18,138.14,7.2388]
[1728582431393,9.04549986,138.2,138.16,7.2379]
[1728582431918,7.2362,138.2,138.17,1.44739277]
[1728582432096,1.80906506,138.22,138.18,7.36189]
[1728582432418,7.2345,138.23,138.19,8.68313172]
[1728582432917,9.04256765,138.24,138.2,7.48678]
[1728582433094,7.2338,138.24,138.21,1.44689115]
[1728582433292,7.2344,138.23,138.2,1.69787626]
[1728582433505,18.0832,138.25,138.18,40.5571]
[1728582433709,7.2353,138.21,138.18,25.3291]
[1728582433903,18.0832,138.25,138.18,0.12549]
[1728582434104,18.0832,138.25,138.16,43.902374]
[1728582434105,7.236,138.2,138.17,0.12549]
[1728582434314,18.0832,138.25,138.17,0.12549]
[1728582434517,7.2355,138.21,138.18,20.12549]
[1728582435090,1.80892923,138.24,138.19,1.4471268]
[1728582435321,7.2344,138.23,138.19,8.6833268]
[1728582435494,7.2352,138.22,138.18,7.36219]
[1728582436007,7.2352,138.22,138.19,1.44714639]
[1728582436323,7.2352,138.22,138.18,7.36219]
[1728582436617,7.2352,138.22,138.19,1.44712641]
[1728582436921,7.2352,138.22,138.18,7.36219]
[1728582437423,7.2352,138.22,138.18,8.80931674]
[1728582437914,7.2352,138.22,138.19,7.2363]
[1728582438794,7.2352,138.22,138.18,7.36219]
[1728582442600,1.80888148,138.21,138.17,20.12549]
[1728582442801,1.8090933,138.2,138.14,18.0963]
[1728582442997,7.2375,138.17,138.14,25.335]
[1728582443191,7.2375,138.17,138.14,18.0963]
[1728582443892,1.80938395,138.2,138.14,18.0963]
[1728582444098,7.2371,138.18,138.14,25.3351]
[1728582444400,7.2371,138.18,138.15,0.25098]
[1728582444717,7.2371,138.18,138.14,25.3351]
[1728582445020,7.2374,138.17,138.14,25.3351]
[1728582445218,7.2374,138.17,138.14,18.0963]
[1728582445397,7.2374,138.17,138.13,7.2393]
[1728582445598,7.2374,138.17,138.13,8.68692835]
[1728582446703,7.2374,138.17,138.14,24.027864]
[1728582447119,7.2374,138.17,138.13,7.2393]
[1728582447324,7.238,138.16,138.13,7.2393]
[1728582447527,7.238,138.16,138.13,20.25098]
[1728582447824,7.2385,138.15,138.13,0.25098]
[1728582448620,7.2385,138.15,138.12,18.1001]
[1728582448994,7.2385,138.15,138.12,25.34]
[1728582449198,7.2385,138.15,138.12,18.1001]
[1728582449505,7.2385,138.15,138.12,26.78788795]
[1728582450224,7.2385,138.15,138.12,25.3401]
[1728582452608,7.2391,138.14,138.11,0.12549]
[1728582455542,9.04741725,138.17,138.13,7.2392]
[1728582455725,1.80958555,138.18,138.14,0.25098]
[1728582455930,7.238,138.16,138.14,0.25098]
[1728582456618,7.238,138.16,138.13,20.0]
[1728582456819,7.238,138.16,138.14,1.44763522]
[1728582457330,7.238,138.16,138.13,27.2395]
[1728582457916,7.238,138.16,138.12,49.241174]
[1728582458125,7.2385,138.15,138.13,0.25098]
[1728582458427,21.8095431,138.19,138.13,0.25098]
[1728582458739,7.2377,138.17,138.13,0.25098]
[1728582459037,1.80960626,138.16,138.13,0.25098]
[1728582459433,1.80960626,138.16,138.13,7.49028]
[1728582459633,7.2377,138.17,138.13,7.49028]
[1728582460225,7.2377,138.17,138.13,1.69866413]
[1728582460434,7.2371,138.18,138.14,7.239]
[1728582460648,1.8095912,138.17,138.14,7.239]
[1728582461246,7.2381,138.16,138.13,0.25098]
[1728582461635,7.2381,138.16,138.13,7.49048]
[1728582461840,7.2376,138.17,138.13,7.49048]
[1728582462449,9.04770642,138.16,138.12,25.3386]
[1728582462755,7.2386,138.15,138.12,18.0988]
[1728582462930,1.80970036,138.19,138.12,25.3387]
[1728582463130,7.2381,138.16,138.12,25.3387]
[1728582463663,7.2376,138.17,138.13,7.2395]
[1728582463953,1.80969475,138.16,138.13,7.2395]
[1728582464160,1.80969475,138.16,138.13,8.68725617]
[1728582464856,1.80969475,138.16,138.13,7.2395]
[1728582465238,7.2376,138.17,138.13,1.4477561]
[1728582465558,20.0,138.14,138.08,9.65756966]
[1728582465768,7.2416,138.09,138.08,0.8668821]
[1728582466858,7.2412,138.1,138.08,0.8668821]
[1728582467858,1.81077979,138.12,138.08,0.8668821]
[1728582468157,9.05097979,138.12,138.08,8.1087821]
[1728582468860,7.2406,138.11,138.08,0.8668821]
[1728582469957,9.05137516,138.1,138.08,0.8668821]
[1728582470162,9.05217593,138.09,138.08,0.8668821]
[1728582470460,1.81057593,138.09,138.08,0.8668821]
[1728582471163,1.81057203,138.13,138.08,0.8668821]
[1728582471455,7.2404,138.12,138.08,0.8668821]
[1728582471659,1.81037359,138.11,138.08,0.8668821]
[1728582471961,9.05097359,138.11,138.08,0.8668821]
[1728582474836,7.2415,138.1,138.08,0.8668821]
[1728582477845,7.2406,138.11,138.08,0.8668821]
[1728582479263,21.8103779,138.13,138.08,0.8668821]
[1728582479456,7.2411,138.1,138.08,0.8668821]
[1728582483868,7.2402,138.12,138.08,8.1086821]
[1728582484066,1.81035571,138.11,138.08,8.1086821]
[1728582484650,9.05005195,138.13,138.09,8.68978156]
[1728582484859,9.04930325,138.14,138.1,7.241]
[1728582485057,7.2395,138.13,138.1,7.241]
[1728582485256,7.2395,138.13,138.09,31.018384]
[1728582485497,9.05042959,138.12,138.08,26.2128821]
[1728582486154,1.81002959,138.12,138.08,26.2128821]
[1728582486357,7.2406,138.11,138.08,26.2128821]
[1728582486977,7.2401,138.12,138.08,26.2128821]
[1728582487777,21.81025311,138.15,138.09,8.94063642]
[1728582487959,7.2394,138.14,138.1,7.241]
[1728582488158,9.04962784,138.13,138.1,7.241]
[1728582488774,7.2396,138.13,138.1,7.241]
[1728582490158,7.2396,138.13,138.09,31.269264]
[1728582492294,6.7396,138.13,138.09,31.269264]
[1728582493365,7.2401,138.12,138.09,31.269264]
[1728582493569,9.05063158,138.11,138.08,26.2128821]
[1728582494357,1.81003158,138.11,138.08,0.8668821]
[1728582494593,7.2416,138.09,138.08,0.8668821]
[1728582494882,19.91237578,138.11,138.04,1.25731544]
[1728582495087,7.2432,138.06,138.04,1.25731544]
[1728582495299,7.2432,138.06,138.03,7.53254149]
[1728582495795,7.2428,138.07,138.03,7.53254149]
[1728582496295,7.2428,138.07,138.03,27.2447]
[1728582496466,9.05314478,138.08,138.04,7.2442]
[1728582497279,1.81084478,138.08,138.03,20.0]
[1728582497502,21.81076914,138.11,138.04,19.6842025]
[1728582497665,1.81076914,138.11,138.04,19.6842025]
[1728582497870,7.2417,138.09,138.05,7.2433]
[1728582498081,9.05289968,138.08,138.04,25.47959]
[1728582499304,9.05289968,138.08,138.04,18.23559]
[1728582499594,9.05289968,138.08,138.04,25.47959]
[1728582499798,7.2432,138.06,138.03,7.37019]
[1728582499985,7.2428,138.07,138.03,7.37019]
[1728582500172,9.05374778,138.07,138.03,7.37019]
[1728582500504,1.81095229,138.06,138.03,7.37019]
[1728582501186,1.81095229,138.06,138.02,20.0]
[1728582501486,7.2432,138.06,138.02,27.2451]
[1728582501697,1.81105828,138.05,138.02,27.2451]
[1728582502187,7.2428,138.07,138.02,27.2451]
[1728582502397,1.81105379,138.06,138.02,27.2451]
[1728582502907,1.81105379,138.06,138.03,7.2446]
[1728582503372,9.05425379,138.06,138.02,27.2452]
[1728582503579,1.81109925,138.05,138.02,27.2452]
[1728582503784,1.81106289,138.05,138.02,27.2452]
[1728582504797,7.2428,138.07,138.03,7.2447]
[1728582505001,1.81103379,138.06,138.02,20.0]
[1728582505171,7.2433,138.06,138.02,27.2452]
[1728582505372,1.81118274,138.05,138.02,27.2452]
[1728582505583,7.2427,138.07,138.03,7.2446]
[1728582505786,1.81104223,138.06,138.03,7.2446]
[1728582506191,1.81104223,138.06,138.01,7.52505014]
[1728582506397,1.81104223,138.06,137.99,7.75770921]
[1728582506398,7.2443,138.04,138.0,7.2462]
[1728582506599,1.81136161,138.03,138.0,7.2462]
[1728582510776,9.05616161,138.03,137.99,7.49768]
[1728582511696,7.2454,138.02,137.98,32.8879096]
[1728582511899,1.81167859,138.01,137.98,32.8879096]
[1728582512299,1.81167859,138.01,137.98,25.3647]
[1728582513988,7.2458,138.01,137.98,25.3647]
[1728582514189,1.81180993,138.0,137.98,25.3647]
[1728582515012,1.81179858,138.03,137.97,1.57492887]
[1728582515312,1.81179858,138.03,138.0,18.1157]
[1728582515513,1.81179858,138.03,138.0,25.3618]
[1728582516015,22.4537,137.97,137.96,7.54133]
[1728582516313,22.4537,137.97,137.92,7.2501]
[1728582516514,1.81233171,137.96,137.92,7.2501]
[1728582516816,9.06083171,137.96,137.92,7.2501]
[1728582517298,9.06083171,137.96,137.91,25.65776684]
[1728582517499,9.06083171,137.96,137.91,32.90836684]
[1728582517830,1.81233171,137.96,137.91,25.65776684]
[1728582518304,1.81233793,137.97,137.93,7.2496]
[1728582518999,9.06023793,137.97,137.93,7.2496]
[1728582520346,7.249,137.95,137.91,25.65776684]
[1728582520523,9.0614477,137.95,137.91,25.65776684]
[1728582520841,7.249,137.95,137.91,25.65776684]
[1728582521138,7.249,137.95,137.91,7.53126684]
[1728582521309,27.249,137.95,137.91,7.53126684]
[1728582523615,27.249,137.95,137.9,7.2515]
[1728582524534,27.249,137.95,137.91,7.251]
[1728582524735,20.0,137.95,137.92,7.2505]
[1728582524936,29.06162545,137.95,137.91,7.2507]
[1728582525417,1.81262545,137.95,137.92,7.2501]
[1728582526341,6.3433,137.99,137.92,18.1262]
[1728582526342,21.81253292,137.98,137.92,18.1262]
[1728582526628,7.2481,137.97,137.93,7.2499]
[1728582526806,1.81237628,137.96,137.93,7.2499]
[1728582527009,1.81237467,137.97,137.95,7.249]
[1728582527648,1.81237467,137.97,137.94,26.2396821]
[1728582527834,1.81237467,137.97,137.95,7.2488]
[1728582528142,1.81220753,137.98,137.95,7.2488]
[1728582528649,1.81220753,137.98,137.96,7.2483]
[1728582528937,1.81220753,137.98,137.95,7.2488]
[1728582530435,1.81220753,137.98,137.94,18.9904821]
[1728582530653,1.81195047,137.98,137.96,7.2484]
[1728582532437,1.81195047,137.98,137.96,18.1211]